bitfinex-derivatives/quotes_BNBF0:USTF0_20250715
["timestamp","ask_amount","ask_price","bid_price","bid_amount"]
[1752572922403,0.98888216,678.06,677.21,0.9936769]
[1752572923406,0.98888216,678.03,677.23,0.9936769]
[1752572923605,0.98888216,678.03,677.24,0.9936769]
[1752572924508,0.98888216,678.02,677.24,0.9936769]
[1752572925410,0.98888216,678.02,677.25,0.9936769]
[1752572926410,0.98888216,678.01,677.26,0.9936769]
[1752572927006,0.98888216,678.01,677.27,0.9936769]
[1752572927607,0.98888216,678.0,677.28,0.9936769]
[1752572928513,0.98888216,678.0,677.29,0.9936769]
[1752572929418,0.98888216,677.99,677.3,0.9936769]
[1752572930616,0.98888216,677.99,677.31,0.9936769]
[1752572931612,0.98888216,677.98,677.32,0.9936769]
[1752572931916,0.98888216,677.96,677.34,0.9936769]
[1752572932419,0.25660405,678.54,677.34,0.9936769]
[1752572932420,0.98888216,677.95,677.34,0.9936769]
[1752572933416,0.98888216,677.94,677.35,0.9936769]
[1752572933714,0.98888216,677.95,677.35,0.9936769]
[1752572933912,1.31435911,678.08,677.35,0.9936769]
[1752572933913,0.98888216,677.94,677.35,0.9936769]
[1752572934419,0.98888216,677.93,677.36,0.9936769]
[1752572935518,0.98888216,677.94,677.36,0.9936769]
[1752572936414,0.98888216,677.93,677.37,0.9936769]
[1752572937119,0.98888216,677.94,677.37,0.9936769]
[1752572937616,0.98888216,677.93,677.37,0.9936769]
[1752572940817,0.98888216,677.93,677.24,1.31886276]
[1752572940818,0.98888216,677.98,677.34,0.9936769]
[1752572941021,0.98888216,677.96,677.32,0.9936769]
[1752572941319,0.98888216,677.99,677.3,0.9936769]
[1752572941918,0.98888216,678.0,677.28,0.9936769]
[1752572942121,0.98888216,677.98,677.22,0.9936769]
[1752572942518,0.98888216,677.97,677.2,0.9936769]
[1752572943120,0.98888216,677.98,677.21,0.9936769]
[1752572945227,0.98888216,677.98,677.24,0.9936769]
[1752572946221,0.98888216,677.98,677.19,0.25676972]
[1752572946222,0.98888216,677.92,677.28,0.9936769]
[1752572948629,1.97153866,678.26,677.19,0.25676972]
[1752572948630,0.98888216,677.89,677.3,0.9936769]
[1752572949031,0.98888216,677.85,677.33,0.9936769]
[1752572949625,0.98888216,677.84,677.33,0.9936769]
[1752572952329,0.98888216,677.85,677.33,0.9936769]
[1752572953531,0.98888216,677.89,677.3,0.9936769]
[1752572954331,0.98888216,677.88,677.31,0.9936769]
[1752572957546,0.98888216,677.9,677.3,0.9936769]
[1752572957746,0.98888216,677.93,677.34,0.9936769]
[1752572959040,0.98888216,677.91,677.35,0.9936769]
[1752572959439,0.98888216,677.92,677.35,0.9936769]
[1752572962244,0.98888216,677.89,677.37,0.9936769]
[1752572962647,0.98888216,677.95,677.33,0.9936769]
[1752572963144,0.98888216,678.0,677.39,0.9936769]
[1752572964545,0.98888216,678.02,677.37,0.9936769]
[1752572965644,0.98888216,678.02,677.38,0.9936769]
[1752572966248,0.98888216,678.02,677.37,0.9936769]
[1752572966543,0.98888216,678.02,677.38,0.9936769]
[1752572967143,0.98888216,678.02,677.37,0.9936769]
[1752572967344,0.98888216,677.98,677.4,0.9936769]
[1752572967544,0.98888216,677.99,677.4,0.9936769]
[1752572968247,0.98888216,678.0,677.41,0.9936769]
[1752572968443,0.98888216,678.04,677.46,0.9936769]
[1752572968748,0.98888216,678.05,677.46,0.9936769]
[1752572968946,0.98888216,678.06,677.45,0.9936769]
[1752572969246,0.98888216,678.06,677.44,0.9936769]
[1752572969541,0.98888216,678.06,677.45,0.9936769]
[1752572970243,0.98888216,678.07,677.44,0.9936769]
[1752572970442,0.98888216,678.11,677.49,0.9936769]
[1752572971249,0.98888216,678.12,677.48,0.9936769]
[1752572971845,0.98888216,678.11,677.48,0.9936769]
[1752572972143,0.98888216,678.12,677.48,0.9936769]
[1752572973252,0.98888216,678.13,677.47,0.9936769]
[1752572974250,0.98888216,678.14,677.47,0.9936769]
[1752572975145,0.98888216,678.14,677.46,0.9936769]
[1752572978253,0.98888216,678.15,677.45,0.9936769]
[1752572978955,0.98888216,678.12,677.47,0.9936769]
[1752572979351,0.98888216,678.13,677.47,0.9936769]
[1752572979651,0.98888216,678.12,677.47,0.9936769]
[1752572980157,0.98813286,678.12,677.47,0.99286818]
[1752572981958,0.98813286,678.11,677.47,0.99286818]
[1752572983455,0.98813286,678.12,677.47,0.99286818]
[1752572983658,0.98813286,678.09,677.49,0.99286818]
[1752572984361,0.98813286,678.09,677.48,0.99286818]
[1752572985359,0.98813286,678.1,677.48,0.99286818]
[1752572987659,0.98813286,678.09,677.48,0.99286818]
[1752572987858,0.25672236,678.23,677.46,0.99286818]
[1752572987859,0.98813286,678.13,677.46,0.99286818]
[1752572989261,0.98813286,678.13,677.45,0.99286818]
[1752572990462,0.98813286,678.17,677.43,0.99286818]
[1752572994960,0.98813286,678.16,677.44,0.99286818]
[1752572995359,0.98813286,678.17,677.44,0.99286818]
[1752572997468,0.98813286,678.15,677.46,0.99286818]
[1752572997768,0.98813286,678.22,677.45,0.99286818]
[1752572998368,0.98813286,678.22,677.44,0.99286818]
[1752572998566,0.98813286,678.28,677.51,0.99286818]
[1752572999268,0.98813286,678.29,677.51,0.99286818]
[1752573001466,0.98813286,678.28,677.51,0.99286818]
[1752573001769,0.98813286,678.29,677.5,0.99286818]
[1752573002869,0.98813286,678.31,677.53,0.99286818]
[1752573003066,0.98813286,678.32,677.53,0.99286818]
[1752573003370,0.98813286,678.32,677.54,0.99286818]
[1752573003570,0.98813286,678.32,677.53,0.99286818]
[1752573004273,0.98813286,678.31,677.54,0.99286818]
[1752573005372,0.98813286,678.32,677.53,0.99286818]
[1752573006273,0.98813286,678.31,677.53,0.99286818]
[1752573006472,0.98813286,678.32,677.53,0.99286818]
[1752573007569,0.98813286,678.27,677.56,0.99286818]
[1752573008372,0.98813286,678.26,677.57,0.99286818]
[1752573010071,1.31435911,678.39,677.44,1.31886276]
[1752573010276,0.98660476,678.26,677.57,0.99121385]
[1752573011275,0.98660476,678.25,677.57,0.99121385]
[1752573011772,0.98660476,678.26,677.56,0.99121385]
[1752573012072,0.98660476,678.24,677.55,0.99121385]
[1752573012774,0.98660476,678.23,677.55,0.99121385]
[1752573013179,0.98660476,678.23,677.56,0.99121385]
[1752573014075,0.98660476,678.23,677.55,0.99121385]
[1752573014276,0.98660476,678.23,677.56,0.99121385]
[1752573015277,0.98660476,678.22,677.57,0.99121385]
[1752573016783,0.98660476,678.27,677.54,0.99121385]
[1752573017483,0.25664474,678.44,677.19,0.25676972]
[1752573017484,0.98660476,678.29,677.52,0.99121385]
[1752573017683,0.98660476,678.29,677.51,0.99121385]
[1752573017878,0.98660476,678.32,677.49,0.99121385]
[1752573018178,0.98660476,678.31,677.5,0.99121385]
[1752573018378,0.98660476,678.29,677.47,0.99121385]
[1752573018683,0.98660476,678.28,677.47,0.99121385]
[1752573019381,0.98660476,678.26,677.48,0.99121385]
[1752573019583,0.98660476,678.23,677.45,0.99121385]
[1752573020279,0.98660476,678.23,677.46,0.99121385]
[1752573020480,0.98660476,678.22,677.46,0.99121385]
[1752573020782,0.98660476,678.2,677.44,0.99121385]
[1752573021379,0.98660476,678.19,677.45,0.99121385]
[1752573021584,0.98660476,678.22,677.43,0.99121385]
[1752573021784,0.98660476,678.2,677.43,0.99121385]
[1752573021988,0.98660476,678.14,677.36,0.99121385]
[1752573022180,0.25664474,678.44,677.19,0.25676972]
[1752573022181,0.98660476,678.13,677.37,0.99121385]
[1752573022879,0.98660476,678.14,677.37,0.99121385]
[1752573023283,0.98660476,678.13,677.37,0.99121385]
[1752573024285,0.98660476,678.13,677.38,0.99121385]
[1752573027186,0.98660476,678.12,677.38,0.99121385]
[1752573027484,0.98660476,678.13,677.38,0.99121385]
[1752573028187,0.98660476,678.12,677.38,0.99121385]
[1752573028686,0.98660476,678.13,677.39,0.99121385]
[1752573029187,0.98660476,678.13,677.38,0.99121385]
[1752573029586,0.98660476,678.09,677.41,0.99121385]
[1752573031284,0.98660476,678.09,677.4,0.99121385]
[1752573031490,0.98660476,678.01,677.46,0.99121385]
[1752573031791,0.98660476,678.04,677.44,0.99121385]
[1752573033988,0.98660476,678.03,677.44,0.99121385]
[1752573034186,0.98660476,678.04,677.44,0.99121385]
[1752573036187,0.98752017,678.04,677.44,0.99298133]
[1752573036390,0.98752017,678.04,677.43,0.99298133]
[1752573036790,0.98752017,678.08,677.41,0.99298133]
[1752573037086,0.98752017,678.1,677.39,0.99298133]
[1752573037390,0.98752017,678.09,677.39,0.99298133]
[1752573037887,0.98752017,678.12,677.37,0.99298133]
[1752573038585,0.98752017,678.1,677.34,0.99298133]
[1752573038790,0.98752017,678.07,677.31,0.99298133]
[1752573039289,0.98729586,678.07,677.31,0.99294009]
[1752573039490,0.98729586,678.03,677.26,0.99294009]
[1752573040389,0.98729586,678.04,677.26,0.99294009]
[1752573041490,0.98729586,678.04,677.25,0.99294009]
[1752573042287,0.98729586,678.04,677.24,0.99294009]
[1752573042791,0.98729586,678.07,677.23,0.99294009]
[1752573043293,0.98729586,678.07,677.22,0.99294009]
[1752573043795,0.98729586,678.07,677.23,0.99294009]
[1752573044093,0.98729586,678.07,677.22,0.99294009]
[1752573044495,0.98729586,678.08,677.22,0.99294009]
[1752573046191,0.98729586,678.08,677.21,0.99294009]
[1752573046691,0.98729586,678.07,677.22,0.99294009]
[1752573046891,0.98729586,678.06,677.22,0.99294009]
[1752573047693,0.98729586,678.04,677.23,0.99294009]
[1752573047893,0.98729586,678.07,677.22,0.99294009]
[1752573048098,0.98729586,678.06,677.22,0.99294009]
[1752573048497,0.98729586,678.07,677.22,0.99294009]
[1752573048797,0.98729586,678.08,677.21,0.99294009]
[1752573049297,0.98729586,678.08,677.2,0.99294009]
[1752573051196,0.98729586,678.09,677.2,0.99294009]
[1752573051401,0.98729586,678.09,677.19,1.24970981]
[1752573052002,0.98729586,678.08,677.2,0.99294009]
[1752573052699,0.25664474,678.44,677.19,0.25676972]
[1752573052700,0.98729586,678.06,677.21,0.99294009]
[1752573053000,0.98729586,678.09,677.19,1.24970981]
[1752573054298,0.98729586,678.09,677.19,0.25676972]
[1752573055501,0.98729586,678.1,677.19,0.25676972]
[1752573057804,0.98729586,678.08,677.19,1.24970981]
[1752573058005,0.98729586,678.1,677.19,0.25676972]
[1752573058805,0.98729586,678.09,677.19,0.25676972]
[1752573061709,0.98729586,678.1,677.19,0.25676972]
[1752573062010,0.98729586,678.09,677.19,1.24970981]
[1752573062706,0.98729586,678.07,677.19,1.24970981]
[1752573062907,0.98729586,678.06,677.2,0.99294009]
[1752573064610,0.98729586,678.06,677.21,0.99294009]
[1752573065411,0.98729586,678.05,677.21,0.99294009]
[1752573067010,0.98729586,678.06,677.21,0.99294009]
[1752573067314,0.98729586,678.07,677.21,0.99294009]
[1752573067810,0.98729586,678.03,677.23,0.99294009]
[1752573068011,0.98729586,678.04,677.23,0.99294009]
[1752573068212,0.98729586,678.03,677.23,0.99294009]
[1752573068414,0.98729586,678.03,677.24,0.99294009]
[1752573069514,0.98729586,678.02,677.25,0.99294009]
[1752573070014,0.98729586,678.04,677.23,0.99294009]
[1752573071319,0.98729586,678.04,677.24,0.99294009]
[1752573072020,0.98729586,678.06,677.26,0.99294009]
[1752573072217,0.98729586,678.12,677.32,0.99294009]
[1752573072420,0.98729586,678.11,677.32,0.99294009]
[1752573073023,0.98729586,678.13,677.31,0.99294009]
[1752573073218,0.98729586,677.99,677.2,0.99294009]
[1752573073418,0.98729586,677.99,677.21,0.99294009]
[1752573075322,0.98729586,677.98,677.22,0.99294009]
[1752573076023,0.98729586,677.99,677.21,0.99294009]
[1752573076419,0.98729586,677.98,677.22,0.99294009]
[1752573076819,0.98729586,677.96,677.23,0.99294009]
[1752573077324,0.98729586,677.96,677.24,0.99294009]
[1752573078118,0.98729586,677.98,677.22,0.99294009]
[1752573078520,0.98729586,677.97,677.22,0.99294009]
[1752573078923,0.98729586,677.94,677.19,1.24970981]
[1752573079226,0.98729586,677.9,677.19,1.24970981]
[1752573079425,0.98729586,677.89,677.19,1.24970981]
[1752573081423,0.98729586,677.89,677.2,0.99294009]
[1752573082428,0.98729586,677.89,677.19,1.24970981]
[1752573083023,0.98729586,677.91,677.19,0.25676972]
[1752573083229,0.98729586,677.92,677.19,0.25676972]
[1752573085731,0.98729586,677.91,677.19,0.25676972]
[1752573086132,0.98729586,677.92,677.19,0.25676972]
[1752573087231,0.98729586,677.91,677.19,0.25676972]
[1752573087929,0.98729586,677.89,677.19,1.24970981]
[1752573088133,0.25664474,678.44,677.19,0.25676972]
[1752573088134,0.98729586,677.92,677.19,0.25676972]
[1752573088336,0.98729586,677.91,677.19,0.25676972]
[1752573089236,0.98729586,677.9,677.19,0.25676972]
[1752573089439,0.98729586,677.91,677.19,0.25676972]
[1752573092837,0.98729586,677.89,677.19,0.25676972]
[1752573093836,0.98729586,677.88,677.19,0.25676972]
[1752573095840,0.98729586,677.87,677.19,0.25676972]
[1752573097342,0.98729586,677.87,677.19,1.24970981]
[1752573097945,0.98729586,677.84,677.21,0.99294009]
[1752573098343,0.98729586,677.83,677.21,0.99294009]
[1752573098643,0.98729586,677.85,677.2,0.99294009]
[1752573099445,0.98729586,677.84,677.21,0.99294009]
[1752573100849,0.98729586,677.84,677.2,0.99294009]
[1752573101053,0.98729586,677.83,677.21,0.99294009]
[1752573101254,0.98729586,677.78,677.19,0.25676972]
[1752573104150,0.98729586,677.79,677.19,0.25676972]
[1752573105449,0.98729586,677.79,677.16,0.99294009]
[1752573106054,0.98729586,677.77,677.14,0.99294009]
[1752573106550,0.98729586,677.77,677.13,0.99294009]
[1752573107451,0.98729586,677.78,677.13,0.99294009]
[1752573108154,0.98729586,677.83,677.11,0.25682657]
[1752573108363,0.98729586,677.82,677.11,0.25682657]
[1752573108858,0.98729586,677.81,677.11,0.25682657]
[1752573110556,0.98729586,677.82,677.11,0.25682657]
[1752573110855,0.98729586,677.81,677.11,0.25682657]
[1752573111358,0.98729586,677.82,677.11,0.25682657]
[1752573111861,0.98729586,677.81,677.11,0.25682657]
[1752573112361,0.98729586,677.82,677.11,0.25682657]
[1752573114257,0.98729586,677.81,677.11,0.25682657]
[1752573114462,1.31435911,677.99,677.11,0.25682657]
[1752573114463,0.98729586,677.82,677.11,0.25682657]
[1752573115761,0.98729586,677.89,677.02,0.99294009]
[1752573115964,0.98729586,677.85,677.04,0.25684458]
[1752573116964,0.98729586,677.86,677.04,0.25684458]
[1752573117161,0.98729586,677.91,677.07,0.99294009]
[1752573117465,0.98729586,677.92,677.08,0.99294009]
[1752573118360,0.98729586,677.91,677.08,0.99294009]
[1752573118566,0.98729586,677.91,677.09,0.99294009]
[1752573119466,0.98729586,677.95,677.13,0.99294009]
[1752573119666,0.98729586,677.95,677.12,0.99294009]
[1752573119865,0.98729586,677.88,677.16,0.99294009]
[1752573120662,0.98729586,677.89,677.16,0.99294009]
[1752573120966,0.98729586,677.88,677.16,0.99294009]
[1752573121363,0.98729586,677.85,677.13,0.99294009]
[1752573121766,0.98729586,677.81,677.16,0.99294009]
[1752573122066,0.98729586,677.8,677.16,0.99294009]
[1752573124068,0.98729586,677.81,677.16,0.99294009]
[1752573124269,0.98729586,677.8,677.16,0.99294009]
[1752573125768,0.98729586,677.79,677.17,0.99294009]
[1752573126365,0.98729586,677.78,677.17,0.99294009]
[1752573127168,0.98729586,677.78,677.18,0.99294009]
[1752573127566,0.98729586,677.97,677.05,0.99294009]
[1752573128366,0.98729586,677.96,677.05,0.99294009]
[1752573128569,0.98729586,677.94,677.04,0.25684458]
[1752573129466,0.98729586,677.94,677.04,1.24978467]
[1752573130366,0.98729586,677.94,677.04,0.25684458]
[1752573131370,0.98729586,677.94,677.04,1.24978467]
[1752573131975,0.98729586,677.94,677.04,0.25684458]
[1752573132474,0.98729586,677.93,677.04,1.24978467]
[1752573133476,0.98729586,677.93,677.05,0.99294009]
[1752573135478,0.98729586,677.92,677.05,0.99294009]
[1752573136378,0.98729586,677.92,677.06,0.99294009]
[1752573137374,0.98729586,677.84,677.11,0.99294009]
[1752573138575,0.98729586,677.83,677.11,0.99294009]
[1752573139276,0.98729586,677.82,677.1,0.99294009]
[1752573140382,0.98729586,677.76,677.14,0.99294009]
[1752573141079,0.98729586,677.73,677.16,0.99294009]
[1752573141579,0.98729586,677.73,677.17,0.99294009]
[1752573142082,0.98729586,677.69,677.19,0.99294009]
[1752573143184,0.98729586,677.76,677.15,0.99294009]
[1752573145187,0.98729586,677.75,677.15,0.99294009]
[1752573145786,0.98729586,677.74,677.16,0.99294009]
[1752573148284,0.98729586,677.77,677.14,0.99294009]
[1752573149585,0.98729586,677.79,677.14,0.99294009]
[1752573150589,0.98729586,677.81,677.21,0.99294009]
[1752573150787,0.98729586,677.82,677.22,0.99294009]
[1752573150985,0.98729586,677.83,677.22,0.99294009]
[1752573151687,0.98729586,677.83,677.23,0.99294009]
[1752573153491,0.98729586,677.84,677.23,0.99294009]
[1752573154893,0.98729586,677.84,677.22,0.99294009]
[1752573155594,0.98729586,677.85,677.22,0.99294009]
[1752573156196,0.98729586,677.81,677.24,0.99294009]
[1752573156596,0.98729586,677.79,677.26,0.99294009]
[1752573157096,0.98729586,677.81,677.26,0.99294009]
[1752573157295,0.98729586,677.87,677.31,0.99294009]
[1752573157796,0.98729586,677.86,677.32,0.99294009]
[1752573158295,0.98729586,677.86,677.31,0.99294009]
[1752573158495,0.98729586,677.86,677.32,0.99294009]
[1752573159296,0.98729586,677.87,677.31,0.99294009]
[1752573160397,0.98729586,677.88,677.3,0.99294009]
[1752573161195,0.98729586,677.89,677.3,0.99294009]
[1752573161498,0.98729586,677.89,677.29,0.99294009]
[1752573162896,0.98729586,677.9,677.29,0.99294009]
[1752573163398,0.98729586,677.9,677.28,0.99294009]
[1752573164596,0.98729586,677.88,677.26,0.99294009]
[1752573165300,0.98729586,677.88,677.25,0.99294009]
[1752573165597,0.98729586,677.85,677.22,0.99294009]
[1752573166998,0.25664474,678.44,677.24,0.99294009]
[1752573166999,0.98729586,677.83,677.24,0.99294009]
[1752573167498,0.98729586,677.84,677.23,0.99294009]
[1752573168103,0.98729586,677.86,677.22,0.99294009]
[1752573170311,0.98729586,677.85,677.22,0.99294009]
[1752573171312,0.98729586,677.84,677.23,0.99294009]
[1752573172209,0.98729586,677.85,677.23,0.99294009]
[1752573172412,0.98729586,677.85,677.22,0.99294009]
[1752573172911,0.98729586,677.84,677.23,0.99294009]
[1752573173615,0.98729586,677.86,677.25,0.99294009]
[1752573175718,0.98729586,677.87,677.25,0.99294009]
[1752573176219,1.31435911,678.02,677.25,0.99294009]
[1752573176220,0.98729586,677.86,677.25,0.99294009]
[1752573176720,0.98729586,677.87,677.25,0.99294009]
[1752573177921,0.98729586,677.85,677.26,0.99294009]
[1752573180318,0.98729586,677.84,677.27,0.99294009]
[1752573180924,1.31435911,677.99,677.12,1.31886276]
[1752573181223,0.98731783,677.85,677.26,0.99409747]
[1752573181822,0.98731783,677.84,677.27,0.99409747]
[1752573185622,0.98731783,677.83,677.27,0.99409747]
[1752573186425,0.98731783,677.82,677.28,0.99409747]
[1752573186926,0.98731783,677.83,677.27,0.99409747]
[1752573187827,0.98731783,677.83,677.28,0.99409747]
[1752573188229,0.98731783,677.83,677.27,0.99409747]
[1752573189325,0.98731783,677.84,677.27,0.99409747]
[1752573190525,0.98731783,677.83,677.27,0.99409747]
[1752573191039,0.98731783,677.83,677.28,0.99409747]
[1752573192332,0.98731783,677.83,677.27,0.99409747]
[1752573192532,0.98731783,677.84,677.27,0.99409747]
[1752573193134,0.98731783,677.96,677.19,0.99409747]
[1752573194232,0.98731783,678.0,677.23,0.99409747]
[1752573196137,0.98731783,677.99,677.23,0.99409747]
[1752573196337,0.98731783,678.0,677.23,0.99409747]
[1752573197237,0.98731783,677.99,677.23,0.99409747]
[1752573197738,0.98731783,678.02,677.26,0.99409747]
[1752573198238,0.98731783,678.01,677.26,0.99409747]
[1752573198436,0.98731783,678.0,677.27,0.99409747]
[1752573200342,0.98731783,677.93,677.31,0.99409747]
[1752573201143,0.98731783,677.88,677.35,0.99409747]
[1752573203241,0.98731783,677.87,677.35,0.99409747]
[1752573203638,0.98731783,677.87,677.34,0.99409747]
[1752573204141,0.98731783,677.86,677.35,0.99409747]
[1752573204337,0.98731783,677.86,677.34,0.99409747]
[1752573204743,0.98731783,677.87,677.34,0.99409747]
[1752573204942,0.98731783,677.87,677.21,1.31886276]
[1752573204943,0.98731783,677.88,677.35,0.99409747]
[1752573205343,0.98731783,677.89,677.34,0.99409747]
[1752573207240,0.98731783,677.88,677.35,0.99409747]
[1752573208741,0.98731783,677.96,677.39,0.99409747]
[1752573209246,0.98731783,677.96,677.4,0.99409747]
[1752573209447,0.98731783,677.97,677.39,0.99409747]
[1752573210245,0.25676025,678.11,677.39,0.99409747]
[1752573210246,0.98731783,677.96,677.39,0.99409747]
[1752573210445,0.98731783,678.08,677.31,0.99409747]
[1752573211448,1.24407808,678.11,677.33,0.99409747]
[1752573213550,0.98731783,678.09,677.34,0.99409747]
[1752573214048,0.98731783,678.09,677.33,0.99409747]
[1752573215552,0.98731783,677.98,677.21,0.99409747]
[1752573216546,0.98731783,677.96,677.22,0.99409747]
[1752573217449,0.98731783,677.97,677.22,0.99409747]
[1752573219453,0.98731783,677.97,677.04,0.25684458]
[1752573219454,0.98731783,677.96,677.23,0.99409747]
[1752573219654,0.98731783,677.97,677.24,0.99409747]
[1752573219854,0.98731783,677.98,677.25,0.99409747]
[1752573220252,0.98731783,677.95,677.27,0.99409747]
[1752573222662,0.98731783,677.94,677.28,0.99409747]
[1752573223062,0.98731783,677.93,677.29,0.99409747]
[1752573223358,0.25676025,678.11,677.04,0.25684458]
[1752573223359,0.98731783,677.9,677.31,0.99409747]
[1752573224459,0.98731783,677.89,677.31,0.99409747]
[1752573225766,0.98731783,677.89,677.32,0.99409747]
[1752573226066,0.98731783,677.88,677.32,0.99409747]
[1752573226267,0.98731783,677.93,677.38,0.99409747]
[1752573226867,0.98731783,677.96,677.41,0.99409747]
[1752573227364,0.98731783,677.97,677.41,0.99409747]
[1752573227668,0.98731783,677.98,677.4,0.99409747]
[1752573228469,0.98731783,678.02,677.37,0.99409747]
[1752573230276,0.98731783,678.03,677.37,0.99409747]
[1752573232377,0.98731783,678.03,677.36,0.99409747]
[1752573233473,0.98731783,678.06,677.34,0.99409747]
[1752573236179,0.98731783,678.06,677.35,0.99409747]
[1752573236475,0.98731783,678.06,677.34,0.99409747]
[1752573237377,0.98731783,678.06,677.35,0.99409747]
[1752573238278,0.98731783,678.03,677.36,0.99409747]
[1752573238475,0.98731783,678.07,677.34,0.99409747]
[1752573241582,0.98731783,678.08,677.33,0.99409747]
[1752573241779,0.98731783,678.07,677.33,0.99409747]
[1752573242282,0.98731783,678.08,677.33,0.99409747]
[1752573242778,0.98731783,678.07,677.33,0.99409747]
[1752573243283,0.98731783,678.06,677.35,0.99409747]
[1752573243478,0.98731783,678.08,677.33,0.99409747]
[1752573244580,0.98731783,678.07,677.33,0.99409747]
[1752573245286,0.98731783,678.07,677.34,0.99409747]
[1752573245483,0.98731783,678.07,677.33,0.99409747]
[1752573245780,0.25676025,678.11,677.33,0.99409747]
[1752573245987,0.98692853,678.07,677.33,0.99364172]
[1752573246382,0.98692853,678.07,677.34,0.99364172]
[1752573248393,0.98692853,678.07,677.04,0.25684458]
[1752573248394,0.98692853,678.05,677.35,0.99364172]
[1752573248582,0.98692853,678.07,677.33,0.99364172]
[1752573249089,0.98692853,678.07,677.34,0.99364172]
[1752573249487,0.98692853,678.06,677.34,0.99364172]
[1752573251587,0.98692853,678.06,677.35,0.99364172]
[1752573252291,0.98692853,678.05,677.35,0.99364172]
[1752573253296,0.98692853,678.02,677.37,0.99364172]
[1752573253590,0.98692853,678.05,677.35,0.99364172]
[1752573254794,0.98692853,678.04,677.36,0.99364172]
[1752573257897,0.98692853,678.06,677.35,0.99364172]
[1752573258491,0.98692853,678.06,677.34,0.99364172]
[1752573260397,0.98692853,678.06,677.35,0.99364172]
[1752573260597,0.98692853,678.05,677.35,0.99364172]
[1752573260997,0.98692853,678.03,677.28,0.99364172]
[1752573261501,0.98692853,677.96,677.24,0.99364172]
[1752573262399,0.25676025,678.11,677.04,0.25684458]
[1752573262604,0.98731005,677.84,677.31,0.99435614]
[1752573262799,0.98731005,677.87,677.29,0.99435614]
[1752573263002,0.98731005,677.83,677.26,0.99435614]
[1752573263202,0.98731005,677.84,677.25,0.99435614]
[1752573263602,0.98731005,677.84,677.22,0.99435614]
[1752573263800,0.98731005,677.88,677.22,0.99435614]
[1752573265304,0.98731005,677.89,677.22,0.99435614]
[1752573266207,0.98731005,677.89,677.21,0.99435614]
[1752573266506,0.98731005,677.9,677.21,0.99435614]
[1752573268108,0.98731005,677.9,677.2,0.99435614]
[1752573268511,0.98731005,677.91,677.2,0.99435614]
[1752573268712,0.98731005,677.93,677.18,0.99435614]
[1752573269515,0.98731005,677.91,677.16,0.99435614]
[1752573271213,0.98731005,677.92,677.15,0.99435614]
[1752573271622,0.98731005,677.91,677.15,0.99435614]
[1752573271912,0.98731005,677.89,677.16,0.99435614]
[1752573272912,0.98731005,677.88,677.15,0.99435614]
[1752573273117,0.98731005,677.86,677.12,0.99435614]
[1752573273414,0.98731005,677.83,677.08,0.99435614]
[1752573274312,0.98731005,677.83,677.1,0.99435614]
[1752573274522,0.98731005,677.8,677.1,0.99435614]
[1752573275218,0.98731005,677.81,677.09,0.99435614]
[1752573277115,0.98731005,677.82,677.08,0.99435614]
[1752573277414,0.98731005,677.91,677.04,0.25684458]
[1752573279621,0.98731005,677.92,677.04,0.25684458]
[1752573280121,0.98731005,677.91,677.04,0.25684458]
[1752573284525,0.98731005,677.92,677.04,0.25684458]
[1752573286526,0.98731005,677.82,677.04,1.25120072]
[1752573287226,0.98731005,677.83,677.04,1.25120072]
[1752573287430,0.98731005,677.84,677.04,0.25684458]
[1752573287630,0.98731005,677.82,677.04,0.25684458]
[1752573287835,0.98731005,677.81,677.04,0.25684458]
[1752573288235,0.98731005,677.83,677.04,0.25684458]
[1752573288628,0.98731005,677.82,677.04,0.25684458]
[1752573288927,0.98731005,677.85,677.04,0.25684458]
[1752573289127,0.98731005,677.84,677.04,0.25684458]
[1752573290128,0.98731005,677.85,677.04,0.25684458]
[1752573290830,0.98731005,677.84,677.04,0.25684458]
[1752573291328,0.98731005,677.82,677.04,0.25684458]
[1752573291732,0.98731005,677.83,677.04,0.25684458]
[1752573292438,0.98731005,677.83,676.89,0.99435614]
[1752573292730,0.98731005,677.79,676.88,0.25688534]
[1752573293034,0.98731005,677.77,676.88,0.25688534]
[1752573293231,0.98731005,677.78,676.88,0.25688534]
[1752573294729,0.98731005,677.77,676.88,0.25688534]
[1752573295130,0.98731005,677.78,676.88,0.25688534]
[1752573298636,0.98731005,677.79,676.88,0.25688534]
[1752573300533,0.98731005,677.78,676.88,0.25688534]
[1752573301035,0.98731005,677.74,676.88,0.25688534]
[1752573301834,0.98731005,677.75,676.88,0.25688534]
[1752573302337,0.98731005,677.74,676.88,0.25688534]
[1752573303738,0.98731005,677.72,676.88,0.25688534]
[1752573306341,0.98731005,677.73,676.88,0.25688534]
[1752573306538,0.98731005,677.72,676.88,0.25688534]
[1752573307139,0.98731005,677.73,676.88,0.25688534]
[1752573308642,0.98731005,677.7,676.88,0.25688534]
[1752573308941,0.98731005,677.73,676.88,0.25688534]
[1752573309146,0.98731005,677.72,676.88,0.25688534]
[1752573309346,0.98731005,677.73,676.88,0.25688534]
[1752573310351,0.98731005,677.72,676.88,0.25688534]
[1752573311348,0.98731005,677.74,676.88,0.25688534]
[1752573314050,0.98731005,677.76,676.88,0.25688534]
[1752573315251,0.25676025,678.11,676.88,0.25688534]
[1752573315252,0.98731005,677.75,676.88,0.25688534]